Cogmind - Beta 16 @@@ ROGUE MODE // 2026.01.18 @ 01:29:16 Player: parasect Result: Escaped! Performance ------------- Evolutions (9) 4500 Regions Visited (14) 2800 Robots Destroyed (2) 10 Value Destroyed (29) 29 Prototype IDs (2) 40 Alien Tech Used (0) 0 Bonus (31147) 31147 TOTAL SCORE: 38526 Bonus ------- Pacifist 834 Entered DSFs 500 Win 3000 Win Speed 26813 Cogmind --------- Core Integrity 874/1600 Matter 17/300 Energy 0/100 System Corruption 1% Temperature Cool (6) Movement Flying (32) Location To Epsilon Eridani Parts ------- > --- POWER (2) -------- (None) > --- PROPULSION (9) --- Improved VTOL Module Cooled Impulse Thruster Cooled Impulse Thruster > --- UTILITY (12) ----- Hacking Suite Hacking Suite System Shield > --- WEAPON (2) ------- (None) > --- INVENTORY (5) ---- Spacefold Activator Enhanced Nova Cannon Peak State ------------ > --- POWER ------------ Micro Fission Core Light Antimatter Reactor > --- PROPULSION ------- Improved VTOL Module Improved VTOL Module Improved VTOL Module Improved VTOL Module Improved VTOL Module Cooled Impulse Thruster Cooled Impulse Thruster Cooled Impulse Thruster Cooled Impulse Thruster > --- UTILITY ---------- Hacking Suite > --- WEAPON ----------- Heavy Hammer > --- INVENTORY -------- Cooled Impulse Thruster Cooled Impulse Thruster Spacefold Activator Enhanced Nova Cannon [Rating: 78] Favorites ----------- Power Micro Fission Core Engine Ion Engine Power Core Micro Fission Core Reactor Light Antimatter Reactor Propulsion Improved VTOL Module Treads Advanced Treads Leg Aluminum Leg Flight Unit Improved VTOL Module Utility Reaction Control System Device Reaction Control System Storage Small Storage Unit Processor Improved Signal Interpreter Hackware Hacking Suite Protection Medium Armor Plating Weapon Heavy Hammer Energy Cannon Enhanced Nova Cannon Ballistic Gun Assault Rifle Impact Weapon Heavy Hammer Build | -11 -10 -9 -8 -7 -6 -6 -5 -5 -4 -3 -2 -2 -2 -1 ------- Run | Yrd Mat Mat Mat Fac Fac Ext Fac DSF Fac Res Res Tes Sec Acc Slots Evolved 18 | . . 2 2 2 2 . 2 . 2 2 2 . . 2 Power 1 | . . . . 1 . . . . . . . . . . Propulsion 7 | . . 1 1 . 1 . 1 . 1 . 1 . . 1 Utility 10 | . . 1 1 1 1 . 1 . 1 2 1 . . 1 Weapon . | . . . . . . . . . . . . . . . Parts Attached 36 | . . . 8 9 2 1 . 2 1 2 . . . 11 Power 5 | . . . 1 1 . . . 1 . 1 . . . 1 Engine 2 | . . . 1 1 . . . . . . . . . . Core 2 | . . . . . . . . 1 . . . . . 1 Reactor 1 | . . . . . . . . . . 1 . . . . Propulsion 19 | . . . 6 4 1 . . . 1 1 . . . 6 Treads 2 | . . . 2 . . . . . . . . . . . Leg . | . . . . . . . . . . . . . . . Wheel . | . . . . . . . . . . . . . . . Hover . | . . . . . . . . . . . . . . . Flight 17 | . . . 4 4 1 . . . 1 1 . . . 6 Utility 10 | . . . 1 3 1 1 . 1 . . . . . 3 Device 2 | . . . . 2 . . . . . . . . . . Storage . | . . . . . . . . . . . . . . . Processor 2 | . . . . . 1 . . 1 . . . . . . Hackware 3 | . . . . . . . . . . . . . . 3 Protection 3 | . . . 1 1 . 1 . . . . . . . . Artifact . | . . . . . . . . . . . . . . . Weapon 2 | . . . . 1 . . . . . . . . . 1 Energy Gun . | . . . . . . . . . . . . . . . Energy Cannon 1 | . . . . . . . . . . . . . . 1 Ballistic Gun . | . . . . . . . . . . . . . . . Ballistic Cannon . | . . . . . . . . . . . . . . . Launcher . | . . . . . . . . . . . . . . . Special Weapon . | . . . . . . . . . . . . . . . Impact Weapon 1 | . . . . 1 . . . . . . . . . . Slashing Weapon . | . . . . . . . . . . . . . . . Piercing Weapon . | . . . . . . . . . . . . . . . Special Melee Weapon . | . . . . . . . . . . . . . . . Unidentified Prototypes 2 | . . . . 1 . . . . . . . . . 1 Parts Lost 20 | . . . . . . 1 . . 4 . . . . 15 Power 4 | . . . . . . 1 . . . . . . . 3 Propulsion 8 | . . . . . . . . . . . . . . 8 Utility 7 | . . . . . . . . . 4 . . . . 3 Weapon 1 | . . . . . . . . . . . . . . 1 Highest Loss Streak 15 | . . . . . . 1 . . 4 . . . . 15 To Critical Strikes . | . . . . . . . . . . . . . . . Average Backups 3 | 7 4 4 4 4 4 3 3 3 3 2 2 3 3 4 Power . | 2 1 1 . . . . . . . 1 1 1 1 . Propulsion 1 | 4 2 2 1 2 2 2 2 2 1 . . . . 1 Utility 1 | . . . 1 2 2 1 1 1 1 . . . . 1 Weapon . | 1 1 1 . . . . . . . 1 1 2 2 1 Tool/Special . | . . . . . . . . . . . . . . . Unused Backups 9 | . 4 . 2 1 . . . . . . . . . 2 Power . | . . . . . . . . . . . . . . . Propulsion 3 | . 2 . 1 . . . . . . . . . . . Utility 2 | . . . . 1 . . . . . . . . . 1 Weapon 4 | . 2 . 1 . . . . . . . . . . 1 Tool/Special . | . . . . . . . . . . . . . . . Average Slot Usage (%) 56 | . 57 44 54 67 67 77 64 68 70 56 52 52 52 39 Engine 2 | . . . 2 7 6 6 . . . . . . . . Core 1 | . . . . . . . . 1 5 4 4 4 4 3 Treads 1 | . . . 9 . . . . . . . . . . . Leg 3 | . 28 22 10 . . . . . . . . . . . Flight 24 | . . . 11 30 31 33 29 29 30 33 30 30 30 26 Device 5 | . . . . 8 13 13 11 11 9 4 4 4 4 1 Processor 1 | . . . . . 2 6 5 8 9 . . . . . Protection 6 | . . . 3 9 6 10 11 11 10 8 8 8 8 2 Ballistic Gun 4 | . 28 22 18 4 . . . . . . . . . . Impact Weapon 3 | . . . . 5 6 6 5 5 5 4 4 4 4 2 Peak Build Rating 78 | 5 4 4 22 29 35 38 37 46 51 52 47 47 48 78 Average Rating 36 | 4 4 4 12 26 33 37 37 40 48 46 46 47 47 56 On Entrance 30 | 6 4 4 4 22 28 35 37 37 46 40 46 47 47 48 Avg Prop Armor Cover (%) 6 | . 21 21 26 . . . . . 1 2 2 2 2 7 Naked Turns . | . . . . . . . . . . . . . . . Heaviest Build 29 | 3 3 3 13 29 17 20 15 20 20 20 20 20 20 20 Greatest Support 53 | 3 3 3 24 24 25 25 25 25 30 35 25 25 25 53 Greatest Overweight (x) 1 | . . . . 1 . . . 1 . . . . . 1 Average Overweight (x) . | . . . . . . . . . . . . . . . Largest Inventory Capacity 8 | 8 5 5 5 5 5 5 5 5 5 5 5 5 5 5 Average Capacity 5 | 6 5 5 5 5 5 5 5 5 5 5 5 5 5 5 Most Carried 7 | 7 4 5 5 5 5 4 3 3 4 3 3 3 4 5 Average Carried 3 | 5 4 4 4 4 4 3 3 3 3 2 2 3 3 4 Final Capacity 5 | 5 5 5 5 5 5 5 5 5 5 5 5 5 5 5 Final Carried 5 | 4 4 5 4 5 4 3 3 3 4 2 3 3 4 2 Class Distribution -------------------- 75% | Sprinter 14% | Mutant 9% | Scout Dominant Class ---------------- Mutant | -10/Materials Mutant | -9/Materials Mutant | -8/Materials Sprinter | -7/Factory Sprinter | -6/Factory Sprinter | -6/Extension Sprinter | -5/Factory Sprinter | -5/DSF Scout | -4/Factory Sprinter | -3/Research Sprinter | -2/Research Sprinter | -2/Testing Sprinter | -2/Section 7 Sprinter | -1/Access Resources | -11 -10 -9 -8 -7 -6 -6 -5 -5 -4 -3 -2 -2 -2 -1 ----------- Run | Yrd Mat Mat Mat Fac Fac Ext Fac DSF Fac Res Res Tes Sec Acc Matter Collected 284 | 200 . . . 36 28 . . 5 . . . . . 15 Remotely . | . . . . . . . . . . . . . . . Salvage Created 64 | . . . . 36 28 . . . . . . . . . Parts 2 | . . . . 2 . . . . . . . . . . Haulers Intercepted 1 | . . . . 1 . . . . . . . . . . Recyclers Shooed . | . . . . . . . . . . . . . . . Parts Field Recycled . | . . . . . . . . . . . . . . . Retrieved Matter . | . . . . . . . . . . . . . . . Parts Self-Destructed . | . . . . . . . . . . . . . . . Prevented . | . . . . . . . . . . . . . . . Parts Restored . | . . . . . . . . . . . . . . . Kills | -11 -10 -9 -8 -7 -6 -6 -5 -5 -4 -3 -2 -2 -2 -1 ------- Run | Yrd Mat Mat Mat Fac Fac Ext Fac DSF Fac Res Res Tes Sec Acc Combat Hostiles Destroyed . | . . . . . . . . . . . . . . . Classes Destroyed 2 | . . . . 1 1 . . . . . . . . . Tunneler 1 | . . . . . 1 . . . . . . . . . Hauler 1 | . . . . 1 . . . . . . . . . . Best Kill Streak 1 | . . . . 1 1 . . . . . . . . . Combat Bots Only . | . . . . . . . . . . . . . . . Max Kills in Single Turn 1 | . . . . 1 1 . . . . . . . . . Gunslinging . | . . . . . . . . . . . . . . . Exploded . | . . . . . . . . . . . . . . . Melee . | . . . . . . . . . . . . . . . Uniques/NPCs Destroyed . | . . . . . . . . . . . . . . . Combat | -11 -10 -9 -8 -7 -6 -6 -5 -5 -4 -3 -2 -2 -2 -1 -------- Run | Yrd Mat Mat Mat Fac Fac Ext Fac DSF Fac Res Res Tes Sec Acc Hostile Shots Fired 385 | . 5 10 11 81 . 12 . 12 24 14 4 6 . 206 Missed 235 | . 3 2 6 59 . 10 . 6 17 11 3 4 . 114 Hits 150 | . 2 8 5 22 . 2 . 6 7 3 1 2 . 92 Projectile 150 | . 2 8 5 22 . 2 . 6 7 3 1 2 . 92 Critical Strikes 1 | . . . . . . . . . . . . . . 1 Damage Taken 3132 | . 15 129 70 219 . 30 . 65 488 77 . 59 . 1980 Core 990 | . 9 36 28 37 . . . 40 88 26 . . . 726 Absorbed by Shields . | . . . . . . . . . . . . . . . Core Remaining (%) 92 | 100 96 91 94 94 . 100 . 96 92 98 . . 100 54 Volleys Fired 2 | . . . . . . . . . . . . . . 2 Largest 1 | . . . . . . . . . . . . . . 1 Hottest 120 | . . . . . . . . . . . . . . 120 Shots Fired 2 | . . . . . . . . . . . . . . 2 Gun . | . . . . . . . . . . . . . . . Cannon 2 | . . . . . . . . . . . . . . 2 Launcher . | . . . . . . . . . . . . . . . Special . | . . . . . . . . . . . . . . . Kinetic . | . . . . . . . . . . . . . . . Thermal 2 | . . . . . . . . . . . . . . 2 Explosive . | . . . . . . . . . . . . . . . Electromagnetic . | . . . . . . . . . . . . . . . Robot Hit Streak . | . . . . . . . . . . . . . . . Robot Miss Streak . | . . . . . . . . . . . . . . . Penetration Max . | . . . . . . . . . . . . . . . Secondary Targets . | . . . . . . . . . . . . . . . Shots Hit Robots 5 | . . . . 4 1 . . . . . . . . . Core Hits 1 | . . . . 1 . . . . . . . . . . Critical Kills . | . . . . . . . . . . . . . . . Critical Parts Destroyed 1 | . . . . . 1 . . . . . . . . . Critical Strikes 1 | . . . . . 1 . . . . . . . . . Smash 1 | . . . . . 1 . . . . . . . . . Melee Attacks 23 | . . . . 6 2 . . . 4 5 2 1 1 2 Impact 23 | . . . . 6 2 . . . 4 5 2 1 1 2 Slashing . | . . . . . . . . . . . . . . . Piercing . | . . . . . . . . . . . . . . . Sneak Attacks 2 | . . . . 1 1 . . . . . . . . . Combat Hostiles . | . . . . . . . . . . . . . . . Follow-up Attacks . | . . . . . . . . . . . . . . . Damage Inflicted 319 | . . 13 . 190 115 . . . . . 1 . . . Guns . | . . . . . . . . . . . . . . . Cannons . | . . . . . . . . . . . . . . . Explosions . | . . . . . . . . . . . . . . . Melee 305 | . . . . 190 115 . . . . . . . . . Ramming 14 | . . 13 . . . . . . . . 1 . . . Kinetic . | . . . . . . . . . . . . . . . Thermal . | . . . . . . . . . . . . . . . Explosive . | . . . . . . . . . . . . . . . Electromagnetic . | . . . . . . . . . . . . . . . Impact 305 | . . . . 190 115 . . . . . . . . . Slashing . | . . . . . . . . . . . . . . . Piercing . | . . . . . . . . . . . . . . . Highest Corruption 6 | . . 1 . . . . . . 6 . . . . 1 Average Corruption 1 | . . 1 . . . . . . 1 . . . . 1 Corruption Purged . | . . . . . . . . . . . . . . . Corruption Blocked . | . . . . . . . . . . . . . . . Effects 3 | . . . . . . . . . 1 . . . . 2 Parts Rejected 1 | . . . . . . . . . . . . . . 1 Data Loss (minor) 1 | . . . . . . . . . 1 . . . . . Alerts 1 | . . . . . . . . . . . . . . 1 Overload Shots . | . . . . . . . . . . . . . . . Overflow Damage 157 | . . . . 42 115 . . . . . . . . . Projectiles . | . . . . . . . . . . . . . . . Explosions . | . . . . . . . . . . . . . . . Melee 157 | . . . . 42 115 . . . . . . . . . Knockbacks 1 | . . . . . 1 . . . . . . . . . Impact 1 | . . . . . 1 . . . . . . . . . Kinetic . | . . . . . . . . . . . . . . . Secondary . | . . . . . . . . . . . . . . . Self-Inflicted Damage 6 | . . 6 . . . . . . . . . . . . Shots . | . . . . . . . . . . . . . . . Rammed 5 | . . 4 . . . . . . . . 1 . . . Targets Rammed 5 | . . 4 . . . . . . . . 1 . . . Kicked . | . . . . . . . . . . . . . . . Crushed . | . . . . . . . . . . . . . . . Highest Temperature 107 | . . . 18 14 1 3 . 8 18 89 . . . 107 Average Temperature 28 | . . . 8 4 1 2 . 8 11 58 . . . 36 Received Heat Transfer 234 | . . 36 36 51 . . . 30 9 18 . . . 54 Siege Activations . | . . . . . . . . . . . . . . . Martial Activations . | . . . . . . . . . . . . . . . Shielding Activations . | . . . . . . . . . . . . . . . Robots Disrupted . | . . . . . . . . . . . . . . . Combat Hostiles . | . . . . . . . . . . . . . . . Robots Corrupted 1 | . . . . . 1 . . . . . . . . . Combat Hostiles . | . . . . . . . . . . . . . . . Parts Fried 2 | . . . . . 2 . . . . . . . . . Impact Corruptions 5 | . . . . 1 4 . . . . . . . . . Robots Melted . | . . . . . . . . . . . . . . . Combat Hostiles . | . . . . . . . . . . . . . . . Parts Melted . | . . . . . . . . . . . . . . . Heat Transferred . | . . . . . . . . . . . . . . . Parts Sabotaged . | . . . . . . . . . . . . . . . Parts Stolen . | . . . . . . . . . . . . . . . Parts Stripped . | . . . . . . . . . . . . . . . Power Chain Reactions . | . . . . . . . . . . . . . . . Alert | -11 -10 -9 -8 -7 -6 -6 -5 -5 -4 -3 -2 -2 -2 -1 ------- Run | Yrd Mat Mat Mat Fac Fac Ext Fac DSF Fac Res Res Tes Sec Acc Maximum Alert Level 2 | . . . . . . . . . . . . . . 2 Low Security (%) 87 | 100 100 100 100 100 100 100 100 100 100 100 100 100 100 44 Level 1 6 | . . . . . . . . . . . . . . 29 Level 2 5 | . . . . . . . . . . . . . . 26 Level 3 . | . . . . . . . . . . . . . . . Level 4 . | . . . . . . . . . . . . . . . Level 5 . | . . . . . . . . . . . . . . . High Security . | . . . . . . . . . . . . . . . Max Security . | . . . . . . . . . . . . . . . Peak Influence 496 | . 4 11 45 141 83 39 9 9 19 124 69 109 75 496 Initial 69 | . . 1 . 15 68 39 9 9 4 3 69 34 45 38 Average 73 | . . 2 3 24 72 35 9 9 7 53 65 81 59 225 Influence Increases 1333 | . 14 11 50 216 23 . 5 . 46 134 3 78 30 723 Destroy 0b10 Robot/NC 10 | . . . . 5 5 . . . . . . . . . Destroy Leader 2 | . . . . 2 . . . . . . . . . . Successful Hack 168 | . 14 11 5 28 3 . 5 . 27 51 . . . 24 Disable Machine 30 | . . . . . 15 . . . . . . . 15 . Destroy Structure 28 | . . . . 1 . . . . 4 8 3 3 . 9 Partial Spotted 75 | . . . . 45 . . . . . . . . 15 15 Lose Combat Pursuer 1020 | . . . 45 135 . . . . 15 75 . 75 . 675 Influence Decreases 822 | . 10 14 16 110 83 62 10 5 48 17 65 58 47 277 Entered New Map 310 | . . 3 1 20 73 42 10 5 5 4 55 28 37 27 Time Decay 323 | . 10 11 15 90 10 10 . . 14 13 10 30 10 100 Lost Part 189 | . . . . . . 10 . . 29 . . . . 150 Squads Dispatched 10 | . . . 1 . . . . . 2 . . 2 . 5 Investigation 4 | . . . . . . . . . 2 . . . . 2 Extermination 3 | . . . . . . . . . . . . 1 . 2 Reinforcement 3 | . . . 1 . . . . . . . . 1 . 1 Assault . | . . . . . . . . . . . . . . . Garrison . | . . . . . . . . . . . . . . . Intercept . | . . . . . . . . . . . . . . . Searches Triggered . | . . . . . . . . . . . . . . . Construction Impeded . | . . . . . . . . . . . . . . . Haulers Reinforced . | . . . . . . . . . . . . . . . Active Scanning Responses . | . . . . . . . . . . . . . . . Cargo Convoy Interrupts . | . . . . . . . . . . . . . . . Stealth | -11 -10 -9 -8 -7 -6 -6 -5 -5 -4 -3 -2 -2 -2 -1 --------- Run | Yrd Mat Mat Mat Fac Fac Ext Fac DSF Fac Res Res Tes Sec Acc Distress Signals 12 | . . 1 3 . . . . . 2 1 1 . . 4 Communications Jammed . | . . . . . . . . . . . . . . . Distress Signals . | . . . . . . . . . . . . . . . Times Spotted 142 | . 5 3 7 18 . 4 . 3 15 13 3 8 1 62 Peak Tracking Total 22 | . 5 3 7 15 . 4 . 3 15 9 3 6 1 22 Tactical Retreats 18 | . . . 1 4 . . . . 1 2 . 1 . 9 Traps | -11 -10 -9 -8 -7 -6 -6 -5 -5 -4 -3 -2 -2 -2 -1 ------- Run | Yrd Mat Mat Mat Fac Fac Ext Fac DSF Fac Res Res Tes Sec Acc Traps Triggered 2 | . . . . . . . . . 1 . . . . 1 Indirectly . | . . . . . . . . . . . . . . . Trap Hack Attempts . | . . . . . . . . . . . . . . . Triggered . | . . . . . . . . . . . . . . . Disarmed . | . . . . . . . . . . . . . . . Reprogrammed . | . . . . . . . . . . . . . . . Reused . | . . . . . . . . . . . . . . . Traps Extracted . | . . . . . . . . . . . . . . . Installed . | . . . . . . . . . . . . . . . Triggered . | . . . . . . . . . . . . . . . Machines | -11 -10 -9 -8 -7 -6 -6 -5 -5 -4 -3 -2 -2 -2 -1 ---------- Run | Yrd Mat Mat Mat Fac Fac Ext Fac DSF Fac Res Res Tes Sec Acc Machines Disabled 2 | . . . . . 1 . . . . . . . 1 . Max in Single Turn 1 | . . . . . 1 . . . . . . . 1 . Machines Repaired . | . . . . . . . . . . . . . . . Machines Dismantled . | . . . . . . . . . . . . . . . Machines Sabotaged . | . . . . . . . . . . . . . . . Overloaded Fab Kills . | . . . . . . . . . . . . . . . Hacking | -11 -10 -9 -8 -7 -6 -6 -5 -5 -4 -3 -2 -2 -2 -1 --------- Run | Yrd Mat Mat Mat Fac Fac Ext Fac DSF Fac Res Res Tes Sec Acc Machines Accessed 22 | . 1 1 2 4 2 1 1 . 3 2 . . 1 4 Terminals 21 | . 1 1 2 4 2 1 1 . 3 2 . . . 4 Fabricators . | . . . . . . . . . . . . . . . Repair Stations . | . . . . . . . . . . . . . . . Recycling Units . | . . . . . . . . . . . . . . . Scanalyzers 1 | . . . . . . . . . . . . . 1 . Garrison Access . | . . . . . . . . . . . . . . . Total Hacks 49 | . 2 2 6 9 4 2 1 . 9 3 . . 3 8 Successful 21 | . 1 2 3 3 2 1 1 . 3 2 . . 1 2 Failed 28 | . 1 . 3 6 2 1 . . 6 1 . . 2 6 Catastrophic 8 | . . . 1 1 . . . . 1 . . . 1 4 Database Lockouts . | . . . . . . . . . . . . . . . Manual 17 | . 1 2 3 3 3 . . . 5 . . . . . Terminals 46 | . 2 2 6 9 4 2 1 . 9 3 . . . 8 Fabricators . | . . . . . . . . . . . . . . . Repair Stations . | . . . . . . . . . . . . . . . Recycling Units . | . . . . . . . . . . . . . . . Scanalyzers 3 | . . . . . . . . . . . . . 3 . Garrison Access . | . . . . . . . . . . . . . . . Terminal Hacks 14 | . . 1 2 2 1 1 1 . 2 2 . . . 2 Robot Analysis 1 | . . . . . . . . . 1 . . . . . Open Door 3 | . . . . . 1 1 . . . . . . . 1 Open DSF 1 | . . . . . . . 1 . . . . . . . Level Access Points 3 | . . . . . . . . . 1 1 . . . 1 Terminal Index 1 | . . . . 1 . . . . . . . . . . Locate Traps 1 | . . . . 1 . . . . . . . . . . Zone Layout 4 | . . 1 2 . . . . . . 1 . . . . Fabricator Hacks . | . . . . . . . . . . . . . . . Repair Station Hacks . | . . . . . . . . . . . . . . . Recycling Unit Hacks . | . . . . . . . . . . . . . . . Scanalyzer 1 | . . . . . . . . . . . . . 1 . Insert Component 1 | . . . . . . . . . . . . . 1 . Garrison Access Hacks . | . . . . . . . . . . . . . . . Unauthorized Hacks 6 | . 1 1 1 1 1 . . . 1 . . . . . Terminals 6 | . 1 1 1 1 1 . . . 1 . . . . . Botnet 6 | . 1 1 1 1 1 . . . 1 . . . . . Fabricators . | . . . . . . . . . . . . . . . Repair Stations . | . . . . . . . . . . . . . . . Recycling Units . | . . . . . . . . . . . . . . . Scanalyzers . | . . . . . . . . . . . . . . . Garrison Access . | . . . . . . . . . . . . . . . Data Cores Recovered . | . . . . . . . . . . . . . . . Used . | . . . . . . . . . . . . . . . Hacking Detections 21 | . 1 1 2 4 2 1 . . 3 2 . . 1 4 Full Trace Events 4 | . . . . . . . . . 2 . . . . 2 Feedback Events 2 | . . . . . . . . . 1 . . . . 1 Corruption 2 | . . . . . . . . . 1 . . . . 1 Feedback Blocked . | . . . . . . . . . . . . . . . Robot Schematics Acquired . | . . . . . . . . . . . . . . . Robots Built . | . . . . . . . . . . . . . . . Authchips . | . . . . . . . . . . . . . . . Time . | . . . . . . . . . . . . . . . Total Robot Build Rating . | . . . . . . . . . . . . . . . Part Schematics Acquired . | . . . . . . . . . . . . . . . Parts Built . | . . . . . . . . . . . . . . . Authchips . | . . . . . . . . . . . . . . . Time . | . . . . . . . . . . . . . . . Total Part Build Rating . | . . . . . . . . . . . . . . . Part Studies Acquired . | . . . . . . . . . . . . . . . Parts Repaired . | . . . . . . . . . . . . . . . Time . | . . . . . . . . . . . . . . . Parts Recycled . | . . . . . . . . . . . . . . . Recycled Matter . | . . . . . . . . . . . . . . . Retrieved Matter . | . . . . . . . . . . . . . . . Retrieved Components . | . . . . . . . . . . . . . . . Parts Scanalyzed . | . . . . . . . . . . . . . . . Part Schematics Acquired . | . . . . . . . . . . . . . . . Parts Damaged . | . . . . . . . . . . . . . . . Bothacking | -11 -10 -9 -8 -7 -6 -6 -5 -5 -4 -3 -2 -2 -2 -1 ------------ Run | Yrd Mat Mat Mat Fac Fac Ext Fac DSF Fac Res Res Tes Sec Acc Used RIF Installer . | . . . . . . . . . . . . . . . Robots Hacked . | . . . . . . . . . . . . . . . Non-combat . | . . . . . . . . . . . . . . . Combat . | . . . . . . . . . . . . . . . Robot Hacks Applied . | . . . . . . . . . . . . . . . Relay Couplers Released . | . . . . . . . . . . . . . . . Fabnet Peak Effective % . | . . . . . . . . . . . . . . . Robots Rewired . | . . . . . . . . . . . . . . . Allies Hacked . | . . . . . . . . . . . . . . . Hacks Repelled . | . . . . . . . . . . . . . . . Allies | -11 -10 -9 -8 -7 -6 -6 -5 -5 -4 -3 -2 -2 -2 -1 -------- Run | Yrd Mat Mat Mat Fac Fac Ext Fac DSF Fac Res Res Tes Sec Acc Total Allies . | . . . . . . . . . . . . . . . Largest Group . | . . . . . . . . . . . . . . . Highest-Rated Group . | . . . . . . . . . . . . . . . Highest-Rated Ally . | . . . . . . . . . . . . . . . Total Orders . | . . . . . . . . . . . . . . . Ally Attacks . | . . . . . . . . . . . . . . . Total Damage . | . . . . . . . . . . . . . . . Kills . | . . . . . . . . . . . . . . . Allies Corrupted . | . . . . . . . . . . . . . . . Allies Melted . | . . . . . . . . . . . . . . . Intel | -11 -10 -9 -8 -7 -6 -6 -5 -5 -4 -3 -2 -2 -2 -1 ------- Run | Yrd Mat Mat Mat Fac Fac Ext Fac DSF Fac Res Res Tes Sec Acc Active Infowar (turns) 101 | . . . . 1 1 . . 22 77 . . . . . Sensors 74 | . . . . 1 1 . . . 72 . . . . . Machine Analysis 99 | . . . . . . . . 22 77 . . . . . Robot Analysis Total 1 | . . . . . . . . . 1 . . . . . Derelict Logs Recovered . | . . . . . . . . . . . . . . . Drone Launches . | . . . . . . . . . . . . . . . Drone Recoveries . | . . . . . . . . . . . . . . . Exploration | -11 -10 -9 -8 -7 -6 -6 -5 -5 -4 -3 -2 -2 -2 -1 ------------- Run | Yrd Mat Mat Mat Fac Fac Ext Fac DSF Fac Res Res Tes Sec Acc Turns Passed 942 | 2 23 51 108 193 35 23 1 26 90 56 34 64 23 213 Spaces Moved 2877 | 1 46 92 199 569 114 94 4 74 291 174 118 266 81 754 Core 245 | 1 46 92 106 . . . . . . . . . . . Treads . | . . . . . . . . . . . . . . . Legs . | . . . . . . . . . . . . . . . Wheels . | . . . . . . . . . . . . . . . Hover . | . . . . . . . . . . . . . . . Flight 2632 | . . . 93 569 114 94 4 74 291 174 118 266 81 754 Fastest Speed 11 | 50 50 50 31 26 23 23 23 23 20 17 23 23 23 11 Average Speed 26 | 50 50 50 44 27 23 23 23 24 22 21 23 23 23 23 Slowest Speed 106 | 50 50 50 80 106 26 23 23 102 23 23 23 23 23 99 Overloaded Moves 38 | . . . . . . . . . . . . . . 38 Propulsion Burnouts . | . . . . . . . . . . . . . . . Robots Hopped 76 | . . . 5 11 . . . 1 8 3 1 3 2 42 Potential Cave-ins 1 | . . . . . . . . . 1 . . . . . Cave-ins Triggered 1 | . . . . . . . . . 1 . . . . . Exploration Rate (%) 20 | 2 18 16 24 28 4 23 . 69 11 7 7 38 9 30 Regions Visited 14 Branch Regions 3 Pre-discovered Areas . | . . . . . . . . . . . . . . . Known Exits Taken 5 | . . . . . 1 1 1 . 1 1 . . . . Unknown Exits Taken 8 | 1 1 1 1 1 . . . . . . 1 1 1 . Scrap Searched . | . . . . . . . . . . . . . . . Spaces Dug 14 | . . . . 1 . . . . 4 5 1 1 . 2 Terrain Destroyed 15 | . . . . 1 . . . . 4 5 1 1 . 3 Melee 13 | . . . . 1 . . . . 4 5 1 1 . 1 Projectile 2 | . . . . . . . . . . . . . . 2 AOE . | . . . . . . . . . . . . . . . Terrain Rammed . | . . . . . . . . . . . . . . . Walls Destroyed . | . . . . . . . . . . . . . . . Machines Disabled . | . . . . . . . . . . . . . . . Actions | -11 -10 -9 -8 -7 -6 -6 -5 -5 -4 -3 -2 -2 -2 -1 --------- Run | Yrd Mat Mat Mat Fac Fac Ext Fac DSF Fac Res Res Tes Sec Acc Total 2920 | 3 45 96 213 590 117 94 3 79 298 179 120 263 80 740 Wait 5 | . . . . . . . . 5 . . . . . . Move 2724 | . 45 91 190 546 113 93 3 71 275 167 116 259 76 679 Hop 63 | . . . 3 11 . . . 1 7 3 1 3 2 32 Pick Up 21 | . . 1 5 7 . . . . 2 . 1 . 1 4 Fast Attach 14 | . . . 3 1 1 . . 2 . . . . . 7 Attach 23 | . . . 5 5 1 1 . . 1 3 . . . 7 Detach 8 | 1 . . 2 2 . . . . . 1 . . . 2 Swap 5 | . . . . 3 . . . . . . . . . 2 Drop 19 | 2 . . 5 9 . . . . . . . . . 3 Fire 2 | . . . . . . . . . . . . . . 2 Melee 23 | . . . . 6 2 . . . 4 5 2 1 1 2 Ram 4 | . . 4 . . . . . . . . . . . . Kick . | . . . . . . . . . . . . . . . Crush . | . . . . . . . . . . . . . . . Escape Stasis 9 | . . . . . . . . . 9 . . . . . Rewire . | . . . . . . . . . . . . . . . Trap . | . . . . . . . . . . . . . . . Miscellaneous . | . . . . . . . . . . . . . . . Route ------- -11/Scrapyard -10/Materials -9/Materials -8/Materials -7/Factory -6/Factory -6/Extension -5/Factory -5/DSF -4/Factory (discovered 5 exits: *Res x4 / [*Upp]) -3/Research (discovered 3 exits: *Res x3) -2/Research -2/Testing (discovered 2 exits: *Sec / [*Frg]) -2/Section 7 -1/Access To Epsilon Eridani History --------- Turn | Location | Event 3 | -11/Scrapyard | Discovered new exit (range 0) 3 | -11/Scrapyard | Entered Materials 24 | -10/Materials | Discovered new exit (range 5) 26 | -10/Materials | Entered another Materials area 26 | -9/Materials | Evolved 2 slots: Propulsion x1, Utility x1 57 | -9/Materials | Discovered new exit (range 13) 77 | -9/Materials | Entered another Materials area 77 | -8/Materials | Evolved 2 slots: Propulsion x1, Utility x1 182 | -8/Materials | Discovered new exit (range 6) 185 | -8/Materials | Entered Factory 185 | -7/Factory | Evolved 2 slots: Power x1, Utility x1 374 | -7/Factory | Discovered new exit (range 16) 378 | -7/Factory | Entered another Factory area 378 | -6/Factory | Evolved 2 slots: Propulsion x1, Utility x1 412 | -6/Factory | Discovered new exit (range 6) 412 | -6/Factory | Identified exit to Extension 413 | -6/Factory | Entered Extension 432 | -6/Extension | Spotted B-75 Beast 433 | -6/Extension | Spotted B-75 Beast 435 | -6/Extension | Discovered new exit (range 3) 436 | -6/Extension | Identified exit to Factory 436 | -6/Extension | Entered Factory 436 | -5/Factory | Evolved 2 slots: Propulsion x1, Utility x1 437 | -5/Factory | Build established: Sprinter 437 | -5/Factory | Identified exit to DSF 437 | -5/Factory | Entered DSF 455 | -5/DSF | Additional patrols routed to DSF 461 | -5/DSF | Discovered new exit (range 11) 463 | -5/DSF | Identified exit to Factory 463 | -5/DSF | Entered Factory 463 | -4/Factory | Evolved 2 slots: Propulsion x1, Utility x1 527 | -4/Factory | Identified exit to Research 540 | -4/Factory | Crushed by falling debris 550 | -4/Factory | Discovered new exit (range 10) 553 | -4/Factory | Entered Research 553 | -3/Research | Evolved 2 slots: Utility x2 576 | -3/Research | Identified exit to Research 582 | -3/Research | Lost 4 parts (4u) 609 | -3/Research | Entered another Research area 609 | -2/Research | Evolved 2 slots: Propulsion x1, Utility x1 619 | -2/Research | Spotted B-90 Cyclops 642 | -2/Research | Discovered new exit (range 3) 643 | -2/Research | Entered Testing 690 | -2/Testing | Spotted Fortress 706 | -2/Testing | Discovered new exit (range 6) 706 | -2/Testing | Discovered new exit (range 6) 707 | -2/Testing | Entered Section 7 717 | -2/Section 7 | Found Alien Artifact 722 | -2/Section 7 | Identified Spacefold Activator 728 | -2/Section 7 | Discovered new exit (range 10) 730 | -2/Section 7 | Entered Access 730 | -1/Access | Evolved 2 slots: Propulsion x1, Utility x1 796 | -1/Access | Spotted B-99 Colossus 829 | -1/Access | Identified exit to Surface 907 | -1/Access | Spotted B-99 Colossus 907 | -1/Access | Spotted B-99 Colossus 938 | -1/Access | Lost 15 parts (3p8n3u1w) 943 | *** | Escaped! Last Messages --------------- 00904_ Acquired Hacking Suite. 00907_ Imp. Fusion Compressor destroyed. 00907_ Penetrated by Slug. 00907_ Slug penetrates Wall. 00908_ Acquired 4 matter. 00909_ Acquired 6 matter. 00910_ Slug penetrates Wall. 00910_ Penetrated by Slug. 00911_ Slug penetrates Wall. 00920_ System corrupted: IFF burst signal emitted. 00924_ Slug penetrates Wall. 00938_ Penetrated by Slug. 00941_ Connecting with Terminal... >>Open(Door) Sealed Barrier opened. 00942_ The Access Shell folds into the floor. 00942_ Slug penetrates Sealed Heavy Doors. 00943_ Slug penetrates Terminal. [Achievement: Expert Speedrunner] Map ----- +----------------------------------------------------+ | ??# #???# #????????????????????????????????????? | | ??# #???# #????????????????????????????????????? | | ??# #???# #????????????????????????????????????? | | ??# #???# #????????????????????????????????????? | | ### ##### #????????????????????????????????????? | | # #????????????????????????????????????? | | # +????????????????????????????????????? | | # #????????????????????????????????????? | | # !! #????????????????????????????????????? | | # !! #????????????????????????????????????? | | # !! #????????????????????????????????????? | | *" ###############+###########+########?? | | # #?? | | # +?? | | ######+#"############################# ##### #?? | | ?????? #???????????????????????????# #????????? | | ????? #???????????????????????????# #????????? | | ???? #???????????????????????????# #????????? | | ???" " ????????????????????????????# #????????? | | ?? " " ????????????????????###?????# #????????? | | ??""G"" ?########??########## ####### #????????? | | ?? ?? ? "??" #????????? | | ?????? # "??" #????????? | | ########"" "??" #????????? | | "??" #????????? | | "??" "@ #????????? | | "??" "" #????????? | | "??" u#????????? | | ######+##" "??" h #????????? | | % # "??" """ """h #????????? | | #? "??" """T""" #????????? | | #??######??########## ####### #????????? | | #???????????????????###?????# #????????? | | """"" #???????????????????????????# #????????? | | """"" #???????????????????????????# #????????? | | """"" #???????????????????????????# #????????? | | """"" #???????????????????????????? +????????? | | """"" #???????????????????????????? #????????? | | #???????????????????????????? #????????? | | #???????????????????????????? #????????? | | #????????????????????????????##?????????? | | ####+#####???????????????????????????????????????? | | ???# #???????????????????????????????????????????? | | ???# #???????????????????????????????????????????? | | ???# #???????????????????????????????????????????? | | ???# #???????????????????????????????????????????? | | ???# #???????????????????????????????????????????? | | #### #???????????????????????????????????????????? | | #???????????????????????????????????????????? | | ######???????????????????????????????????????????? | +----------------------------------------------------+ Best States ------------- Heat Dissipation 52 Energy Generation 35 Energy Capacity 275 Matter Stores 300 Matter Capacity 300 Sight Range 16 Robot Scan Range 15 Terrain Scan Density 10 Armor Coverage 450 Evasion (%) 75 Offensive Hacking 20 Item Schematics ----------------- None Robot Schematics ------------------ None Fabricated ------------ Nothing Repaired ---------- Nothing Studied --------- None Alien Tech Used ----------------- None Achievements -------------- Dodgeball, But With Guns Expert Speedrunner Nope Challenges ------------ None Game ------ Seed LongswordDynamicNullifier Manual? 0 Play Time 00:40:02 Cumulative 67.5 hours Start 2026.01.18 @ 00:55:07 End 2026.01.18 @ 01:29:16 Sessions 1 Manual Loads 0 Difficulty Rogue Special Mode None Game No. 74 Rogue 74 Adventurer 0 Explorer 0 Win Type 0 Total 10 Types 9/0/1/0/0/0/0/0/0/0 Lore% 44 Gallery% 44 Achievement% 40 Wizard Run 0 Options --------- Layout 2 ASCII 0 Keyboard 1 Movement Numpad Keybinds 0 Fullscreen 2 Font 24/Terminus Map View 50x44 Zoom Use 0% Tactical HUD 1 Map Filters NONE Filters NONE Steam 1 RUN: c35119a9-1791-4928-8501-f459bf01e164